bitfinex/quotes_SOLUSD_20250710
["timestamp","ask_amount","ask_price","bid_price","bid_amount"]
[1752165999760,11.12358071,158.62,158.57,26.0]
[1752165999937,6.30470067,158.62,158.57,26.72]
[1752166000136,18.20828138,158.62,158.57,0.72]
[1752166000445,0.72,158.61,158.57,37.12358071]
[1752166000654,11.84358071,158.6,158.55,11.12358071]
[1752166001028,11.84358071,158.6,158.56,26.0]
[1752166001742,11.12358071,158.61,158.56,37.12358071]
[1752166002059,11.84358071,158.61,158.57,11.12358071]
[1752166002235,82.02,158.62,158.59,11.12358071]
[1752166002437,82.02,158.62,158.6,0.72]
[1752166002754,82.02,158.62,158.6,11.84358071]
[1752166002955,88.32437753,158.62,158.59,11.12358071]
[1752166003753,0.06,158.62,158.61,11.12358071]
[1752166003944,0.06,158.62,158.61,55.05474939]
[1752166004269,0.06,158.71,158.65,26.0]
[1752166004434,6.36088279,158.71,158.68,11.12358071]
[1752166004630,7.08088279,158.71,158.67,11.12358071]
[1752166004852,6.36088279,158.71,158.68,11.12358071]
[1752166005237,6.36088279,158.71,158.65,26.72]
[1752166005738,6.36088279,158.71,158.68,11.12358071]
[1752166005938,6.36088279,158.71,158.65,26.72]
[1752166006145,0.06,158.71,158.65,26.72]
[1752166006340,0.06,158.71,158.68,11.12358071]
[1752166006540,0.06,158.71,158.69,11.12358071]
[1752166006873,16.53961329,158.7,158.65,40.74]
[1752166007050,15.81961329,158.67,158.63,41.81961329]
[1752166007245,0.72,158.69,158.64,16.53961329]
[1752166007440,16.53961329,158.69,158.64,16.53961329]
[1752166007640,0.72,158.69,158.64,16.53961329]
[1752166007863,15.81961329,158.69,158.65,16.53961329]
[1752166008256,6.30199142,158.68,158.65,0.72]
[1752166009946,15.81961329,158.66,158.56,10.93745152]
[1752166010261,6.3036384,158.64,158.59,15.81961329]
[1752166010461,0.72,158.65,158.57,41.14]
[1752166010462,6.30266491,158.67,158.61,15.81961329]
[1752166010758,15.81961329,158.63,158.55,6.3814]
[1752166010972,22.05863642,158.67,158.55,6.3814]
[1752166010973,0.72,158.64,158.58,32.60429726]
[1752166011277,15.81961329,158.64,158.59,20.38021917]
[1752166011438,15.81961329,158.64,158.6,5.28060588]
[1752166011759,15.81961329,158.64,158.59,15.81961329]
[1752166011760,15.81961329,158.66,158.62,15.81961329]
[1752166011962,22.1222782,158.67,158.63,4.56060588]
[1752166012153,15.81961329,158.68,158.64,15.81961329]
[1752166012345,15.81961329,158.68,158.65,4.56060588]
[1752166012545,15.81961329,158.68,158.66,4.56060588]
[1752166012745,15.81961329,158.69,158.67,4.56060588]
[1752166012950,15.81961329,158.69,158.68,4.56060588]
[1752166013138,0.72,158.7,158.68,4.56060588]
[1752166013343,16.53961329,158.7,158.65,15.81961329]
[1752166013572,16.53961329,158.7,158.66,4.56119172]
[1752166013742,22.84086948,158.7,158.67,4.56119172]
[1752166013943,22.84086948,158.7,158.68,4.56119172]
[1752166014266,22.84127615,158.69,158.64,56.13961329]
[1752166014472,22.84127615,158.69,158.65,4.56208993]
[1752166014681,22.84127615,158.69,158.66,4.56208993]
[1752166014844,22.84127615,158.69,158.67,4.56208993]
[1752166015045,6.30166286,158.69,158.68,4.56208993]
[1752166015247,22.12127615,158.69,158.68,4.56208993]
[1752166015447,22.84127615,158.69,158.68,4.56208993]
[1752166015868,7.02166286,158.69,158.68,4.56208993]
[1752166016063,0.72,158.69,158.68,4.56208993]
[1752166016236,16.53961329,158.69,158.68,4.56208993]
[1752166016438,22.84120759,158.69,158.68,4.56208993]
[1752166017566,22.84120759,158.69,158.68,4.56073313]
[1752166018372,22.84120759,158.69,158.62,40.02]
[1752166018580,15.81961329,158.65,158.63,4.562658]
[1752166018755,0.72,158.68,158.64,4.562658]
[1752166018959,15.81961329,158.68,158.65,4.562658]
[1752166019269,15.81961329,158.68,158.66,4.562658]
[1752166019596,22.11290374,158.71,158.67,4.562658]
[1752166019759,22.11290374,158.71,158.68,4.562658]
[1752166019958,0.72,158.7,158.69,4.56263774]
[1752166020383,0.72,158.7,158.62,39.9]
[1752166020683,15.81961329,158.66,158.62,39.9]
[1752166020907,15.81961329,158.63,158.58,15.81961329]
[1752166021065,15.81961329,158.59,158.52,49.87082126]
[1752166021392,0.72,158.58,158.52,89.71082126]
[1752166021563,15.81961329,158.56,158.52,89.71082126]
[1752166021968,6.30622805,158.58,158.53,16.53961329]
[1752166022195,0.72,158.6,158.55,15.81961329]
[1752166022361,22.124386,158.61,158.56,16.53961329]
[1752166022869,15.81961329,158.61,158.57,39.8]
[1752166023091,16.53961329,158.61,158.57,39.8]
[1752166023387,6.30443839,158.62,158.58,15.81961329]
[1752166023600,6.30443839,158.62,158.59,15.81961329]
[1752166023763,23.71877576,158.65,158.6,0.72]
[1752166023963,16.53961329,158.64,158.59,15.81961329]
[1752166024173,16.53961329,158.64,158.59,0.14216157]
[1752166024373,6.3023886,158.67,158.63,15.81961329]
[1752166024572,23.16501329,158.68,158.64,15.81961329]
[1752166024796,23.16501329,158.68,158.62,39.74]
[1752166024797,15.81961329,158.69,158.65,26.53961329]
[1752166025388,15.81961329,158.69,158.66,10.0]
[1752166025604,15.81961329,158.68,158.67,39.7]
[1752166026170,15.81961329,158.68,158.62,10.0]
[1752166026469,15.81961329,158.63,158.59,10.0]
[1752166026696,15.81961329,158.61,158.6,39.62]
[1752166026875,15.81961329,158.61,158.6,49.62]
[1752166027385,15.81961329,158.61,158.6,39.62]
[1752166027778,22.124386,158.61,158.6,39.62]
[1752166027980,38.60631778,158.61,158.57,10.0]
[1752166028301,15.81961329,158.58,158.56,10.0]
[1752166028615,0.72,158.6,158.57,39.52]
[1752166028903,15.81961329,158.58,158.56,10.0]
[1752166029070,15.81961329,158.58,158.57,39.52]
[1752166029270,22.06670449,158.61,158.57,39.52]
[1752166029493,15.81961329,158.58,158.57,39.52]
[1752166029912,22.12557873,158.58,158.57,39.52]
[1752166030192,22.84557873,158.58,158.57,39.46]
[1752166030382,22.12557873,158.58,158.57,39.46]
[1752166031587,22.84557873,158.58,158.57,39.46]
[1752166031777,38.61049233,158.58,158.52,59.87082126]
[1752166031975,15.81961329,158.55,158.54,10.0]
[1752166032288,15.81961329,158.56,158.54,10.0]
[1752166032996,15.81961329,158.56,158.55,39.3]
[1752166033391,22.12557873,158.58,158.55,39.28]
[1752166033702,22.12557873,158.58,158.55,49.98]
[1752166033902,6.30517023,158.6,158.56,10.7]
[1752166034200,6.30517023,158.6,158.58,10.0]
[1752166034499,6.30517023,158.6,158.59,39.26]
[1752166034681,22.12478352,158.6,158.59,39.26]
[1752166035081,22.84478352,158.6,158.59,39.26]
[1752166035502,6.30517023,158.6,158.59,39.26]
[1752166035802,22.84478352,158.6,158.59,39.26]
[1752166036184,38.60770911,158.6,158.56,10.0]
[1752166036385,0.72,158.59,158.57,39.18]
[1752166036589,16.53961329,158.58,158.52,49.87082126]
[1752166036813,15.81961329,158.53,158.52,49.87082126]
[1752166037098,11.14223396,158.53,158.52,49.87082126]
[1752166037305,11.14223396,158.53,158.52,88.99082126]
[1752166037982,17.45018829,158.53,158.52,49.87082126]
[1752166038188,6.30795433,158.53,158.52,88.95082126]
[1752166038505,17.4490624,158.56,158.53,10.0]
[1752166038813,6.30682844,158.56,158.54,0.7]
[1752166039114,22.14964669,158.58,158.55,39.06]
[1752166039301,6.30596544,158.58,158.55,64.90368125]
[1752166039508,6.30570385,158.59,158.56,0.7]
[1752166039685,6.30570385,158.59,158.57,0.7]
[1752166039879,6.30570385,158.59,158.58,39.02]
[1752166040098,22.1493851,158.59,158.58,39.02]
[1752166040787,6.30570385,158.59,158.58,39.02]
[1752166040982,15.84368125,158.61,158.58,39.72]
[1752166041188,15.84368125,158.62,158.59,0.7]
[1752166041425,15.84368125,158.61,158.58,39.02]
[1752166041720,15.84368125,158.6,158.58,49.02]
[1752166041926,0.72,158.62,158.58,49.02]
[1752166042214,6.30437523,158.62,158.58,39.02]
[1752166042530,6.30437523,158.62,158.59,10.7]
[1752166042690,6.30437523,158.62,158.59,10.0]
[1752166042996,6.30437523,158.62,158.59,10.7]
[1752166042997,15.84368125,158.61,158.59,10.7]
[1752166043196,22.14805648,158.62,158.59,10.7]
[1752166043500,6.30437523,158.62,158.6,0.7]
[1752166043704,22.14805648,158.62,158.61,38.88]
[1752166043887,6.3031831,158.65,158.61,39.58]
[1752166044092,6.3031831,158.65,158.62,10.7]
[1752166044398,15.84368125,158.64,158.62,10.0]
[1752166044589,15.84368125,158.64,158.61,48.88]
[1752166044795,15.84368125,158.64,158.61,49.58]
[1752166045015,15.84368125,158.64,158.62,10.7]
[1752166045213,22.14686435,158.65,158.63,0.7]
[1752166045401,22.14686435,158.65,158.64,38.82]
[1752166045903,22.61686435,158.65,158.64,38.82]
[1752166046096,22.14686435,158.65,158.64,38.82]
[1752166046290,6.3031831,158.65,158.64,38.82]
[1752166046496,22.14686435,158.65,158.64,38.82]
[1752166047110,38.37482211,158.65,158.59,36.0]
[1752166047419,15.84368125,158.6,158.58,38.7]
[1752166047622,0.47,158.63,158.58,48.7]
[1752166047798,15.84368125,158.59,158.58,10.0]
[1752166048000,15.84368125,158.59,158.58,48.68]
[1752166048433,22.14924906,158.59,158.58,38.68]
[1752166048637,22.14924906,158.59,158.56,0.03]
[1752166048817,6.30556781,158.59,158.57,48.68]
[1752166049136,6.30556781,158.59,158.57,10.7]
[1752166049302,6.30556781,158.59,158.58,38.62]
[1752166050012,6.30532595,158.6,158.58,49.32]
[1752166050328,6.30532595,158.6,158.59,10.7]
[1752166052929,6.30358043,158.64,158.59,10.7]
[1752166053109,22.06253151,158.64,158.6,39.1]
[1752166053302,15.84368125,158.63,158.6,39.1]
[1752166053532,15.84368125,158.62,158.6,39.1]
[1752166053833,22.06253151,158.64,158.6,39.1]
[1752166053834,6.30358043,158.64,158.61,0.7]
[1752166054134,6.30358043,158.64,158.62,49.08]
[1752166054305,6.30358043,158.64,158.63,10.7]
[1752166054517,22.14726168,158.64,158.62,49.08]
[1752166054726,6.30358043,158.64,158.62,49.08]
[1752166054918,31.60175493,158.65,158.63,0.7]
[1752166055253,15.84368125,158.66,158.64,38.36]
[1752166055733,6.3023886,158.67,158.64,39.06]
[1752166055933,22.14606985,158.67,158.64,49.06]
[1752166056128,6.3023886,158.67,158.64,38.36]
[1752166056332,15.84368125,158.66,158.64,49.06]
[1752166056540,6.3023886,158.67,158.64,49.06]
[1752166056746,22.14606985,158.67,158.64,49.06]
[1752166056959,6.3031831,158.65,158.64,38.36]
[1752166057441,22.14686435,158.65,158.64,38.36]
[1752166057743,22.85686435,158.65,158.64,38.36]
[1752166057961,22.14686435,158.65,158.64,38.36]
[1752166058257,22.85686435,158.65,158.64,38.36]
[1752166058456,38.61482211,158.65,158.59,10.7]
[1752166058660,15.84368125,158.62,158.61,38.22]
[1752166058825,15.84368125,158.62,158.59,48.9]
[1752166059032,15.84368125,158.6,158.59,38.2]
[1752166059330,6.30477271,158.61,158.59,10.65]
[1752166059728,6.30477271,158.61,158.59,0.65]
[1752166060058,15.84368125,158.6,158.57,10.65]
[1752166060225,15.84368125,158.59,158.58,10.0]
[1752166060530,16.55368125,158.59,158.56,0.03]
[1752166060731,15.84368125,158.57,158.56,0.03]
[1752166061039,6.30636312,158.57,158.56,0.03]
[1752166061249,16.61263007,158.57,158.56,10.03]
[1752166061433,16.61263007,158.57,158.56,0.03]
[1752166061849,16.61263007,158.57,158.56,10.03]
[1752166062349,5.47449841,158.57,158.56,10.68]
[1752166062848,11.13813166,158.59,158.56,10.68]
[1752166063029,11.13813166,158.6,158.58,10.0]
[1752166063349,17.44330189,158.6,158.58,10.65]
[1752166063650,6.30517023,158.6,158.59,48.73]
[1752166064152,11.13813166,158.62,158.61,10.0]
[1752166064824,11.84813166,158.62,158.58,10.0]
[1752166065044,11.13813166,158.59,158.57,10.0]
[1752166065248,11.13813166,158.58,158.57,38.04]
[1752166065449,11.13813166,158.58,158.56,48.05]
[1752166065635,11.13813166,158.57,158.56,48.05]
[1752166065835,11.13813166,158.57,158.56,38.05]
[1752166066136,54.30056805,158.61,158.57,10.0]
[1752166066342,54.30056805,158.61,158.55,38.0]
[1752166066343,11.13813166,158.58,158.53,10.0]
[1752166066532,11.13813166,158.54,158.53,47.98]
[1752166066850,11.13813166,158.54,158.53,10.0]
[1752166067048,6.30755645,158.54,158.53,10.65]
[1752166067249,6.30676084,158.56,158.54,10.0]
[1752166067447,6.30676084,158.56,158.54,48.59]
[1752166067748,17.4448925,158.56,158.55,10.0]
[1752166067938,6.30676084,158.56,158.55,10.0]
[1752166069253,6.30676084,158.56,158.54,47.96]
[1752166069547,6.30676084,158.56,158.55,10.0]
[1752166070045,6.30676084,158.56,158.54,47.96]
[1752166070230,6.30676084,158.56,158.55,10.0]
[1752166071647,17.4448925,158.56,158.55,10.0]
[1752166071851,17.4448925,158.56,158.54,10.0]
[1752166072025,17.4448925,158.56,158.55,10.0]
[1752166072426,6.30676084,158.56,158.54,10.0]
[1752166072749,17.4448925,158.56,158.55,10.0]
[1752166072946,33.21179461,158.56,158.53,47.84]
[1752166073174,33.21179461,158.56,158.55,10.0]
[1752166073350,22.07366295,158.56,158.53,48.49]
[1752166073546,22.07366295,158.56,158.54,10.0]
[1752166073547,33.21179461,158.56,158.54,10.0]
[1752166073751,33.21179461,158.56,158.55,10.0]
[1752166074350,33.21179461,158.56,158.53,48.49]
[1752166074542,11.13813166,158.54,158.53,47.84]
[1752166075133,15.76690211,158.56,158.53,47.84]
[1752166075459,11.13813166,158.55,158.54,10.0]
[1752166076468,6.30706238,158.56,158.54,10.65]
[1752166076756,6.30596544,158.58,158.56,10.0]
[1752166077143,6.30477271,158.61,158.57,48.29]
[1752166077350,6.30477271,158.61,158.58,21.78813166]
[1752166077548,6.30477271,158.61,158.59,47.64]
[1752166077768,6.30477271,158.61,158.59,48.29]
[1752166078074,0.71,158.6,158.59,10.0]
[1752166078368,0.71,158.6,158.52,49.87082126]
[1752166078369,26.0,158.58,158.52,49.87082126]
[1752166078569,11.13813166,158.56,158.53,0.65]
[1752166078738,26.0,158.58,158.54,0.65]
[1752166078938,22.06948735,158.59,158.55,0.65]
[1752166079159,11.13813166,158.56,158.54,38.16]
[1752166079334,11.13813166,158.55,158.52,49.87082126]
[1752166079540,11.13813166,158.53,158.52,88.05082126]
[1752166079759,11.13813166,158.54,158.52,88.05082126]
[1752166080266,17.44608599,158.53,158.52,88.05082126]
[1752166080767,17.44608599,158.53,158.52,49.87082126]
[1752166080965,18.15608599,158.53,158.52,1e-08]
[1752166083361,7.01795433,158.53,158.52,1e-08]
[1752166083553,17.44608599,158.53,158.52,1e-08]
[1752166083869,18.15608599,158.53,158.52,1e-08]
[1752166084643,33.92597181,158.53,158.46,0.1]
[1752166084960,11.13813166,158.47,158.46,0.1]
[1752166085157,11.13813166,158.48,158.46,0.1]
[1752166085359,11.13813166,158.48,158.46,0.75]
[1752166085680,11.84813166,158.47,158.44,1e-08]
[1752166085842,11.13813166,158.45,158.44,1e-08]
[1752166086050,0.99432314,158.46,158.44,1e-08]
[1752166086360,18.15927082,158.45,158.44,1e-08]
[1752166086758,17.44927082,158.45,158.44,1e-08]
[1752166087766,26.71,158.47,158.44,0.68000001]
[1752166087767,6.31085889,158.46,158.44,0.68000001]
[1752166087969,6.31085889,158.46,158.44,1e-08]
[1752166088267,11.13813166,158.48,158.45,38.6]
[1752166088468,6.31034265,158.47,158.45,38.6]
[1752166090546,6.31034265,158.47,158.46,0.68]
[1752166091888,6.31034265,158.47,158.44,1e-08]
[1752166091889,18.10847431,158.47,158.44,1e-08]
[1752166092087,11.13813166,158.45,158.44,1e-08]
[1752166092593,18.10927082,158.45,158.44,1e-08]
[1752166093673,6.97113916,158.45,158.44,1e-08]
[1752166093869,18.10927082,158.45,158.44,1e-08]
[1752166094986,6.31113916,158.45,158.44,1e-08]
[1752166095728,17.44927082,158.45,158.44,1e-08]
[1752166095900,6.31113916,158.45,158.44,1e-08]
[1752166096394,6.31113916,158.45,158.44,0.68000001]
[1752166097670,6.31113916,158.45,158.44,11.81813167]
[1752166097865,17.44807613,158.48,158.44,11.81813167]
[1752166098069,33.22293731,158.48,158.45,38.22]
[1752166098287,11.13813166,158.47,158.45,37.54]
[1752166098491,11.13813166,158.46,158.45,37.54]
[1752166098688,11.13813166,158.46,158.44,37.50000001]
[1752166099000,11.79813166,158.45,158.4,8.40078113]
[1752166099294,11.13813166,158.41,158.38,0.03]
[1752166099496,26.66,158.44,158.38,0.03]
[1752166099693,11.13813166,158.39,158.38,0.03]
[1752166100195,11.13813166,158.4,158.38,0.03]
[1752166100487,11.13813166,158.39,158.38,0.03]
[1752166100793,17.45166155,158.39,158.38,0.03]
[1752166102271,18.11166155,158.39,158.38,1e-08]
[1752166103697,17.45166155,158.39,158.38,1e-08]
[1752166103897,6.31352989,158.39,158.38,1e-08]
[1752166104205,6.31273278,158.41,158.38,0.68000001]
[1752166104579,17.45086444,158.41,158.38,0.68000001]
[1752166104777,22.09103716,158.44,158.38,0.68000001]
[1752166104973,22.09103716,158.44,158.39,0.68]
[1752166105175,11.13813166,158.41,158.38,1e-08]
[1752166105395,11.13813166,158.4,158.38,1e-08]
[1752166106182,0.66,158.43,158.38,1e-08]
[1752166106377,11.13813166,158.39,158.38,1e-08]
[1752166106892,18.11166155,158.39,158.38,1e-08]
[1752166109800,17.45166155,158.39,158.38,1e-08]
[1752166110220,18.11166155,158.39,158.38,1e-08]
[1752166110513,17.45166155,158.39,158.38,1e-08]
[1752166110762,18.11166155,158.39,158.38,1e-08]
[1752166110881,6.31352989,158.39,158.38,1e-08]
[1752166111297,1.5484,158.37,158.29,0.2]
[1752166111479,22.10203445,158.36,158.29,0.88]
[1752166111781,17.4528576,158.36,158.31,11.13813166]
[1752166111986,17.4528576,158.36,158.32,0.68]
[1752166112283,11.13813166,158.35,158.32,0.68]
[1752166112685,11.13813166,158.34,158.3,0.99432314]
[1752166112901,11.13813166,158.34,158.31,0.68]
[1752166113594,6.31592244,158.33,158.31,0.68]
[1752166113795,17.4540541,158.33,158.32,37.22]
[1752166114102,6.31592244,158.33,158.32,37.9]
[1752166115185,17.4540541,158.33,158.32,37.22]
[1752166116693,6.31592244,158.33,158.32,37.22]
[1752166116900,17.4540541,158.33,158.32,37.22]
[1752166117610,17.4540541,158.33,158.3,0.03]
[1752166117792,17.4540541,158.33,158.31,37.82]
[1752166118234,11.13813166,158.32,158.31,37.1]
[1752166118700,17.4540541,158.33,158.31,37.82]
[1752166119481,11.13813166,158.32,158.31,37.1]
[1752166119724,22.10572854,158.33,158.3,0.03]
[1752166119887,11.13813166,158.31,158.3,0.03]
[1752166120280,6.31512472,158.35,158.3,11.88813166]
[1752166120480,11.13813166,158.34,158.31,0.72]
[1752166121023,0.72,158.37,158.3,0.03]
[1752166121024,11.13813166,158.32,158.3,0.03]
[1752166121186,11.13813166,158.32,158.3,0.75]
[1752166121379,22.10572854,158.33,158.3,0.75]
[1752166121586,11.13813166,158.32,158.3,0.75]
[1752166121817,11.13813166,158.32,158.3,0.03]
[1752166122030,11.13813166,158.32,158.3,0.75]
[1752166122235,11.13813166,158.31,158.3,0.03]
[1752166122428,0.72,158.32,158.3,0.03]
[1752166122613,11.13813166,158.31,158.3,0.03]
[1752166122799,17.45485201,158.31,158.3,0.03]
[1752166123004,18.17485201,158.31,158.3,0.03]
[1752166123244,17.45485201,158.31,158.3,0.03]
[1752166123526,6.31672035,158.31,158.3,0.75]
[1752166123700,6.31672035,158.31,158.3,0.03]
[1752166123903,17.45485201,158.31,158.3,0.03]
[1752166124801,26.72,158.36,158.3,0.75]
[1752166125003,11.13813166,158.34,158.31,36.82]
[1752166125208,11.13813166,158.32,158.31,37.54]
[1752166125424,11.13813166,158.32,158.31,36.82]
[1752166126124,11.13813166,158.33,158.31,36.82]
[1752166126604,22.10293652,158.35,158.31,37.54]
[1752166126811,11.13813166,158.34,158.32,0.72]
[1752166127007,17.4540541,158.33,158.31,36.82]
[1752166127431,11.85813166,158.32,158.3,0.03]
[1752166127740,11.13813166,158.31,158.3,0.03]
[1752166127908,11.85813166,158.31,158.3,0.03]
[1752166129132,18.17485201,158.31,158.3,0.03]
[1752166130975,18.17485201,158.31,158.29,0.2]
[1752166131139,11.85813166,158.3,158.29,1e-08]
[1752166131456,11.85813166,158.3,158.28,1e-08]
[1752166131457,22.99626332,158.3,158.28,1e-08]
[1752166131631,11.85813166,158.29,158.28,1e-08]
[1752166131831,11.85813166,158.29,158.27,1e-08]
[1752166132031,11.85813166,158.28,158.27,1e-08]
[1752166133279,6.1322,158.27,158.22,1e-08]
[1752166133566,26.0,158.25,158.22,1e-08]
[1752166133855,0.72,158.26,158.22,1e-08]
[1752166134145,22.11271164,158.28,158.23,0.72]
[1752166134351,11.13813166,158.26,158.23,0.72]
[1752166134568,11.13813166,158.24,158.22,1e-08]
[1752166134727,11.13813166,158.23,158.22,1e-08]
[1752166134929,11.85813166,158.23,158.22,1e-08]
[1752166135128,18.1780457,158.23,158.22,1e-08]
[1752166135672,17.4580457,158.23,158.22,1e-08]
[1752166136566,6.31991404,158.23,158.22,1e-08]
[1752166136859,11.13813166,158.25,158.22,0.72000001]
[1752166137026,11.13813166,158.26,158.23,0.72]
[1752166137751,6.3183168,158.27,158.23,0.72]
[1752166137931,6.3183168,158.27,158.23,11.85813166]
[1752166138132,17.45644846,158.27,158.24,0.72]
[1752166138838,11.13813166,158.26,158.24,0.72]
[1752166139138,6.3183168,158.27,158.25,0.72]
[1752166139342,6.3183168,158.27,158.26,0.72]
[1752166139849,26.72,158.31,158.26,0.72]
[1752166140058,11.13813166,158.29,158.26,0.72]
[1752166140235,11.13813166,158.28,158.24,12.1424548]
[1752166140429,11.13813166,158.28,158.25,0.72]
[1752166140648,11.13813166,158.28,158.24,11.4224548]
[1752166140649,11.13813166,158.29,158.26,0.72]
[1752166140878,6.31711939,158.3,158.26,0.72]
[1752166141166,6.31672035,158.31,158.27,47.71813166]
[1752166141332,17.45485201,158.31,158.27,37.3]
[1752166141536,11.13813166,158.3,158.27,36.58]
[1752166141737,11.13813166,158.29,158.25,0.72]
[1752166142045,11.13813166,158.29,158.26,36.58]
[1752166142251,22.82852124,158.31,158.27,0.72]
[1752166142252,17.45485201,158.31,158.27,0.72]
[1752166142556,6.31672035,158.31,158.28,0.72]
[1752166142759,6.31672035,158.31,158.27,11.13813166]
[1752166143066,6.31751847,158.29,158.27,0.72]
[1752166143365,6.31717069,158.3,158.27,11.85813166]
[1752166143754,17.45530235,158.3,158.27,0.72]
[1752166143954,6.31717069,158.3,158.28,0.72]
[1752166144270,6.31717069,158.3,158.27,11.13813166]
[1752166144439,6.31717069,158.3,158.29,0.72]
[1752166144661,6.31717069,158.3,158.26,47.71813166]
[1752166144876,6.31717069,158.3,158.27,0.72]
[1752166145168,6.31717069,158.3,158.28,0.72]
[1752166145662,15.78990079,158.33,158.29,0.72]
[1752166145977,32.31592244,158.33,158.3,0.72]
[1752166146183,32.31592244,158.33,158.31,36.48]
[1752166146366,11.13813166,158.32,158.31,36.48]
[1752166146554,11.13813166,158.34,158.31,36.48]
[1752166146759,26.92458148,158.37,158.32,0.72]
[1752166146957,52.92458148,158.37,158.33,0.72]
[1752166147164,6.31472594,158.36,158.33,0.72]
[1752166147366,17.4528576,158.36,158.33,0.72]
[1752166147864,11.13813166,158.35,158.33,0.72]
[1752166148766,11.13813166,158.35,158.31,48.29813166]
[1752166148957,22.10154079,158.36,158.32,0.68]
[1752166149158,11.13813166,158.35,158.32,0.68]
[1752166149463,6.31552355,158.34,158.32,0.68]
[1752166150062,11.83813166,158.33,158.28,0.68]
[1752166150260,11.13813166,158.3,158.29,36.38]
[1752166150783,11.13813166,158.31,158.29,37.06]
[1752166150976,11.13813166,158.31,158.29,36.38]
[1752166151282,11.13813166,158.31,158.29,37.06]
[1752166151477,17.45525105,158.3,158.27,0.68]
[1752166151771,17.45525105,158.3,158.28,36.34]
[1752166151976,6.31711939,158.3,158.28,37.02]
[1752166152573,17.45525105,158.3,158.28,37.02]
[1752166152752,6.31711939,158.3,158.28,37.02]
[1752166152958,17.45525105,158.3,158.29,36.32]
[1752166153573,6.31711939,158.3,158.29,36.32]
[1752166154080,6.31711939,158.3,158.29,37.0]
[1752166154290,17.45365521,158.34,158.29,48.13813166]
[1752166154494,17.45365521,158.34,158.3,0.68]
[1752166154860,6.6454,158.4,158.29,73.45813166]
[1752166155082,0.7,158.38,158.33,11.13813166]
[1752166155393,11.13813166,158.37,158.34,36.22]
[1752166155597,11.83813166,158.36,158.34,36.22]
[1752166155840,11.13813166,158.36,158.34,36.22]
[1752166156288,6.31512472,158.35,158.34,36.9]
[1752166156472,6.31485906,158.36,158.34,36.9]
[1752166156673,6.31485906,158.36,158.35,0.68]
[1752166157689,6.31485906,158.36,158.34,36.22]
[1752166158057,17.45299072,158.36,158.34,36.22]
[1752166158262,18.15299072,158.36,158.34,36.22]
[1752166158573,6.31485906,158.36,158.34,36.22]
[1752166158780,17.45299072,158.36,158.34,36.22]
[1752166158972,6.31485906,158.36,158.34,36.22]
[1752166159593,17.45299072,158.36,158.34,36.22]
[1752166161691,6.31485906,158.36,158.34,36.22]
[1752166161896,17.45299072,158.36,158.34,36.22]
[1752166162213,6.31485906,158.36,158.34,36.9]
[1752166162584,11.13813166,158.35,158.34,36.22]
[1752166162784,11.83813166,158.35,158.34,35.98]
[1752166163415,22.10167391,158.36,158.34,36.66]
[1752166164120,6.31485906,158.36,158.35,0.68]
[1752166164323,6.3143272,158.37,158.35,0.68]
[1752166164479,17.45245886,158.37,158.35,0.68]
[1752166165409,6.3143272,158.37,158.36,0.68]
[1752166166297,17.45245886,158.37,158.34,36.66]
[1752166166494,11.13813166,158.36,158.35,35.88]
[1752166166691,11.83813166,158.36,158.31,0.68]
[1752166166891,22.10014522,158.37,158.29,0.68]
[1752166166892,11.13813166,158.32,158.29,0.68]
[1752166167094,11.13813166,158.31,158.3,35.88]
[1752166167297,11.13813166,158.31,158.29,0.68]
[1752166167487,11.13813166,158.31,158.3,35.86]
[1752166167695,0.7,158.35,158.29,0.68]
[1752166167898,11.13813166,158.32,158.3,35.86]
[1752166168127,11.13813166,158.33,158.31,0.68]